Cogmind - Beta 16.1 @@@ ROGUE MODE // 2026.04.24 @ 12:43:22 Player: spider Result: Smashed by cave-in Performance ------------- Evolutions (0) 0 Regions Visited (2) 400 Robots Destroyed (31) 155 Value Destroyed (826) 826 Prototype IDs (1) 20 Alien Tech Used (0) 0 Bonus (-36) -36 TOTAL SCORE: 1365 Bonus ------- Follower Combat Kills 30 Friendly Fire -66 Cogmind --------- Core Integrity 0/250 Matter 300/300 Energy 198/200 System Corruption 8% Temperature Cool (0) Movement Treading (320) Ox2 Location -10/Subcaves Parts ------- > --- POWER (1) -------- Subdweller Power Source > --- PROPULSION (2) --- Light Treads > --- UTILITY (2) ------ High-capacity Storage Unit > --- WEAPON (2) ------- Makeshift Hammer > --- INVENTORY (20) --- Spiked Treads Aluminum Leg Wheel Subdweller Monowheel Subdweller Monowheel Improved Heat Sink High-capacity Storage Unit Seismic Detector Power Shielding Light Armor Plating Scrap Shield Beam Cannon Beam Cannon Beam Cannon Beam Cannon Barrage Gun Barrage Gun Multitool Scrap Shield Fragment (45) Peak State ------------ > --- POWER ------------ Subdweller Power Source > --- PROPULSION ------- Light Treads Light Treads > --- UTILITY ---------- High-capacity Storage Unit V3-11A's Pendant > --- WEAPON ----------- Subdweller Laser Makeshift Hammer > --- INVENTORY -------- Aluminum Leg Wheel Subdweller Monowheel Subdweller Monowheel Improved Heat Sink Small Storage Unit High-capacity Storage Unit Seismic Detector Power Shielding Light Armor Plating Beam Cannon Beam Cannon Beam Cannon Beam Cannon Subdweller Machine Gun Barrage Gun Barrage Gun Light Cannon Multitool Scrap Shield Fragment [Rating: 17] Favorites ----------- Power Subdweller Power Source Engine Subdweller Power Source Power Core Light Nuclear Core Propulsion Light Treads Treads Light Treads Leg Aluminum Leg Utility High-capacity Storage Unit Device V3-11A's Pendant Storage High-capacity Storage Unit Protection Light Armor Plating Weapon Subdweller Laser Energy Gun Subdweller Laser Energy Cannon Beam Cannon Ballistic Gun Subdweller Machine Gun Ballistic Cannon Light Cannon Impact Weapon Makeshift Hammer Build | -11 -10 -10 ------- Run | Yrd Mat Sub Slots Evolved . | . . . Power . | . . . Propulsion . | . . . Utility . | . . . Weapon . | . . . Parts Attached 20 | 2 10 8 Power 2 | . 1 1 Engine 1 | . . 1 Core 1 | . 1 . Reactor . | . . . Propulsion 3 | 2 . 1 Treads 3 | 2 . 1 Leg . | . . . Wheel . | . . . Hover . | . . . Flight . | . . . Utility 7 | . 4 3 Device 3 | . 2 1 Storage 1 | . 1 . Processor . | . . . Hackware . | . . . Protection 3 | . 1 2 Artifact . | . . . Weapon 8 | . 5 3 Energy Gun 1 | . . 1 Energy Cannon 3 | . 3 . Ballistic Gun 1 | . . 1 Ballistic Cannon 2 | . 2 . Launcher . | . . . Special Weapon . | . . . Impact Weapon 1 | . . 1 Slashing Weapon . | . . . Piercing Weapon . | . . . Special Melee Weapon . | . . . Unidentified Prototypes 1 | . . 1 Parts Lost 8 | . 1 7 Power 2 | . 1 1 Propulsion 2 | . . 2 Utility 3 | . . 3 Weapon 1 | . . 1 Highest Loss Streak 3 | . 1 3 To Critical Strikes . | . . . Average Backups 16 | 6 11 18 Power . | 1 . . Propulsion 3 | 4 2 4 Utility 5 | . 3 5 Weapon 6 | 1 4 7 Tool/Special . | . . . Unused Backups 22 | . 4 18 Power 1 | . 1 . Propulsion 6 | . 1 5 Utility 5 | . . 5 Weapon 9 | . 2 7 Tool/Special 1 | . . 1 Average Slot Usage (%) 99 | . 97 99 Engine 10 | . 5 11 Core 3 | . 8 1 Treads 28 | . 28 28 Device 9 | . 3 11 Storage 14 | . 14 14 Protection 4 | . 8 2 Energy Gun 9 | . . 13 Energy Cannon 5 | . 18 . Ballistic Gun 4 | . 1 5 Ballistic Cannon 3 | . 8 1 Impact Weapon 5 | . . 7 Peak Build Rating 17 | 6 10 17 Average Rating 13 | 6 9 15 On Entrance 7 | 6 6 10 Avg Prop Armor Cover (%) . | . . . Naked Turns . | . . . Heaviest Build 56 | 14 54 56 Greatest Support 40 | 40 40 40 Greatest Overweight (x) 1 | . 1 1 Average Overweight (x) . | . . 1 Largest Inventory Capacity 20 | 8 20 20 Average Capacity 18 | 8 14 20 Most Carried 20 | 7 16 20 Average Carried 17 | 6 11 19 Final Capacity 20 | 8 20 20 Final Carried 20 | 7 16 20 Class Distribution -------------------- 100% | Mutant Dominant Class ---------------- Mutant | -10/Materials Mutant | -10/Subcaves Resources | -11 -10 -10 ----------- Run | Yrd Mat Sub Matter Collected 775 | 225 224 326 Remotely 10 | . 10 . Salvage Created 1222 | 95 888 239 Parts 76 | 10 45 21 Haulers Intercepted 2 | . 2 . Recyclers Shooed 3 | 1 2 . Parts Field Recycled . | . . . Retrieved Matter . | . . . Parts Self-Destructed 5 | . . 5 Prevented . | . . . Parts Restored . | . . . Kills | -11 -10 -10 ------- Run | Yrd Mat Sub Combat Hostiles Destroyed 22 | . 16 6 Guns 3 | . . 3 Cannons 18 | . 15 3 Classes Destroyed 10 | 2 5 3 Tunneler 1 | 1 . . Hauler 2 | . 2 . Recycler 4 | 1 3 . Operator 1 | . 1 . Watcher 1 | . 1 . Swarmer 4 | . 3 1 Grunt 13 | . 13 . Sentry 1 | . . 1 Artisan 2 | . . 2 Subdweller 4 | . . 4 Best Kill Streak 3 | 2 3 2 Combat Bots Only 3 | . 3 2 Max Kills in Single Turn 1 | 1 1 1 Gunslinging . | . . . Exploded . | . . . Melee . | . . . Uniques/NPCs Destroyed . | . . . Combat | -11 -10 -10 -------- Run | Yrd Mat Sub Hostile Shots Fired 99 | . 41 58 Missed 26 | . 12 14 Hits 73 | . 29 44 Projectile 73 | . 29 44 Critical Strikes 2 | . 2 . Damage Taken 1384 | . 347 1037 Core 282 | . 86 196 Absorbed by Shields . | . . . Regen/Repaired (Parts) 46 | . 46 . Core Remaining (%) 100 | 100 . . Volleys Fired 131 | 7 50 74 Largest 2 | 2 2 2 Hottest 120 | 40 120 90 Shots Fired 219 | 14 101 104 Gun 83 | 14 . 69 Cannon 136 | . 101 35 Launcher . | . . . Special . | . . . Kinetic 90 | 14 20 56 Thermal 129 | . 81 48 Explosive . | . . . Electromagnetic . | . . . Robot Hit Streak 15 | 2 15 13 Robot Miss Streak 5 | 3 5 4 Penetration Max . | . . . Secondary Targets . | . . . Shots Hit Robots 116 | 6 59 51 Core Hits 42 | 3 26 13 Critical Kills 2 | . 1 1 Critical Parts Destroyed 1 | . . 1 Critical Strikes 4 | . 2 2 Meltdown 1 | . 1 . Destroy 1 | . . 1 Blast 1 | . 1 . Smash 1 | . . 1 Melee Attacks 23 | . . 23 Impact 23 | . . 23 Slashing . | . . . Piercing . | . . . Sneak Attacks 3 | . . 3 Combat Hostiles . | . . . Follow-up Attacks . | . . . Damage Inflicted 2619 | 71 1184 1364 Guns 581 | 71 . 510 Cannons 1439 | . 1077 362 Explosions . | . . . Melee 492 | . . 492 Ramming 107 | . 107 . Kinetic 839 | 71 179 589 Thermal 1181 | . 898 283 Explosive . | . . . Electromagnetic . | . . . Impact 492 | . . 492 Slashing . | . . . Piercing . | . . . Highest Corruption 1 | . 1 1 Average Corruption 1 | . 1 1 Corruption Purged . | . . . Corruption Blocked . | . . . Effects 60 | . 6 54 Message Errors 12 | . . 12 Matter Fused 13 | . 2 11 Heat Flow Errors 6 | . . 6 Energy Discharges 12 | . 3 9 Data Loss (minor) 8 | . . 8 Data Loss (major) 3 | . . 3 Misfires 4 | . 1 3 Alerts 2 | . . 2 Overload Shots . | . . . Overflow Damage 162 | . . 162 Projectiles 7 | . . 7 Explosions . | . . . Melee 155 | . . 155 Knockbacks 8 | . 5 3 Impact 5 | . 3 2 Kinetic 3 | . 2 1 Secondary . | . . . Self-Inflicted Damage . | . . . Shots . | . . . Rammed 16 | . 16 . Targets Rammed 17 | . 17 . Kicked . | . . . Crushed 1 | . 1 . Highest Temperature 237 | . 237 200 Average Temperature 57 | . 53 90 Received Heat Transfer 315 | . 189 126 Siege Activations . | . . . Martial Activations . | . . . Shielding Activations . | . . . Robots Disrupted . | . . . Combat Hostiles . | . . . Robots Corrupted 1 | . . 1 Combat Hostiles 1 | . . 1 Parts Fried 3 | . . 3 Impact Corruptions 3 | . . 3 Robots Melted 1 | . 1 . Combat Hostiles 1 | . 1 . Parts Melted 5 | . 4 1 Heat Transferred 2237 | . 1887 350 Parts Sabotaged . | . . . Parts Stolen . | . . . Parts Stripped . | . . . Power Chain Reactions . | . . . Alert | -11 -10 -10 ------- Run | Yrd Mat Sub Maximum Alert Level 1 | . 1 . Low Security (%) 96 | 100 96 . Level 1 3 | . 3 . Level 2 . | . . . Level 3 . | . . . Level 4 . | . . . Level 5 . | . . . High Security . | . . . Max Security . | . . . Peak Influence 233 | 5 233 . Initial . | . . . Average 63 | 3 64 . Influence Increases 568 | 10 503 55 Destroy 0b10 Robot/C 360 | . 320 40 Destroy 0b10 Robot/NC 45 | 10 35 . Destroy Leader 76 | . 76 . Successful Hack 9 | . 9 . Disable Machine 30 | . 30 . Destroy Structure 3 | . 3 . Lose Combat Pursuer 45 | . 30 15 Influence Decreases 568 | 10 486 72 Entered New Map 9 | . . 9 Time Decay 549 | 10 476 63 Lost Part 10 | . 10 . Squads Dispatched 2 | . 2 . Investigation 1 | . 1 . Extermination . | . . . Reinforcement 1 | . 1 . Assault . | . . . Garrison . | . . . Intercept . | . . . Searches Triggered . | . . . Construction Impeded . | . . . Haulers Reinforced . | . . . Active Scanning Responses . | . . . Cargo Convoy Interrupts . | . . . Stealth | -11 -10 -10 --------- Run | Yrd Mat Sub Distress Signals 4 | . 4 . Communications Jammed . | . . . Distress Signals . | . . . Times Spotted 48 | . 34 14 Peak Tracking Total 5 | . 5 3 Tactical Retreats 4 | . 2 2 Traps | -11 -10 -10 ------- Run | Yrd Mat Sub Traps Triggered 2 | . 2 . Indirectly . | . . . Trap Hack Attempts . | . . . Triggered . | . . . Disarmed . | . . . Reprogrammed . | . . . Reused . | . . . Traps Extracted . | . . . Installed . | . . . Triggered . | . . . Machines | -11 -10 -10 ---------- Run | Yrd Mat Sub Machines Disabled 2 | . 2 . Max in Single Turn 1 | . 1 . Machines Repaired . | . . . Machines Dismantled . | . . . Machines Sabotaged . | . . . Overloaded Fab Kills . | . . . Hacking | -11 -10 -10 --------- Run | Yrd Mat Sub Machines Accessed 7 | . 6 1 Terminals 4 | . 4 . Fabricators . | . . . Repair Stations 1 | . 1 . Recycling Units 1 | . 1 . Scanalyzers . | . . . Garrison Access . | . . . Total Hacks 19 | . 14 5 Successful 11 | . 6 5 Failed 8 | . 8 . Catastrophic 1 | . 1 . Database Lockouts . | . . . Manual 12 | . 12 . Terminals 10 | . 10 . Fabricators . | . . . Repair Stations 2 | . 2 . Recycling Units 2 | . 2 . Scanalyzers . | . . . Garrison Access . | . . . Terminal Hacks 9 | . 4 5 Record 5 | . . 5 Part Schematic 1 | . 1 . Robot Analysis 2 | . 2 . Locate Traps 1 | . 1 . Fabricator Hacks . | . . . Repair Station Hacks 2 | . 2 . Scan Component 1 | . 1 . Repair 1 | . 1 . Recycling Unit Hacks . | . . . Scanalyzer . | . . . Garrison Access Hacks . | . . . Unauthorized Hacks . | . . . Terminals . | . . . Fabricators . | . . . Repair Stations . | . . . Recycling Units . | . . . Scanalyzers . | . . . Garrison Access . | . . . Data Cores Recovered . | . . . Used . | . . . Hacking Detections 5 | . 5 . Full Trace Events . | . . . Feedback Events . | . . . Feedback Blocked . | . . . Robot Schematics Acquired . | . . . Robots Built . | . . . Authchips . | . . . Time . | . . . Total Robot Build Rating . | . . . Part Schematics Acquired 1 | . 1 . Parts Built . | . . . Authchips . | . . . Time . | . . . Total Part Build Rating . | . . . Part Studies Acquired . | . . . Parts Repaired 1 | . 1 . Time 26 | . 26 . Parts Recycled . | . . . Recycled Matter . | . . . Retrieved Matter . | . . . Retrieved Components . | . . . Parts Scanalyzed . | . . . Part Schematics Acquired . | . . . Parts Damaged . | . . . Bothacking | -11 -10 -10 ------------ Run | Yrd Mat Sub Used RIF Installer . | . . . Robots Hacked . | . . . Non-combat . | . . . Combat . | . . . Robot Hacks Applied . | . . . Relay Couplers Released . | . . . Fabnet Peak Effective % . | . . . Robots Rewired . | . . . Allies Hacked . | . . . Hacks Repelled . | . . . Allies | -11 -10 -10 -------- Run | Yrd Mat Sub Total Allies 10 | . . 10 Largest Group 6 | . . 6 Highest-Rated Group 114 | . . 114 Highest-Rated Ally 19 | . . 19 Total Orders . | . . . Ally Attacks 10 | . . 10 Total Damage 145 | . . 145 Kills 2 | . . 2 Allies Corrupted . | . . . Allies Melted . | . . . Intel | -11 -10 -10 ------- Run | Yrd Mat Sub Active Infowar (turns) . | . . . Robot Analysis Total 2 | . 2 . Derelict Logs Recovered 1 | . . 1 Drone Launches . | . . . Drone Recoveries . | . . . Exploration | -11 -10 -10 ------------- Run | Yrd Mat Sub Turns Passed 8794 | 47 2457 6290 Spaces Moved 3336 | 19 986 2331 Core . | . . . Treads 3318 | 1 986 2331 Legs 18 | 18 . . Wheels . | . . . Hover . | . . . Flight . | . . . Fastest Speed 120 | 120 160 240 Average Speed 226 | 122 196 240 Slowest Speed 240 | 160 240 240 Overloaded Moves . | . . . Propulsion Burnouts . | . . . Robots Hopped . | . . . Potential Cave-ins 4 | . . 4 Cave-ins Triggered 1 | . . 1 Exploration Rate (%) 60 | 3 97 81 Regions Visited 2 Branch Regions 1 Pre-discovered Areas 1 | . . 1 Known Exits Taken . | . . . Unknown Exits Taken 2 | 1 1 . Scrap Searched 8 | . . 8 Spaces Dug 18 | . . 18 Terrain Destroyed 24 | . . 24 Melee 9 | . . 9 Projectile 15 | . . 15 AOE . | . . . Terrain Rammed . | . . . Walls Destroyed . | . . . Machines Disabled . | . . . Actions | -11 -10 -10 --------- Run | Yrd Mat Sub Total 4326 | 28 1394 2904 Wait 744 | . 301 443 Move 3334 | 18 985 2331 Hop . | . . . Pick Up 33 | 1 18 14 Fast Attach 6 | . 3 3 Attach 3 | . . 3 Detach 1 | . . 1 Swap 14 | 2 10 2 Drop 20 | . 10 10 Fire 131 | 7 50 74 Melee 23 | . . 23 Ram . | . . . Kick . | . . . Crush 17 | . 17 . Escape Stasis . | . . . Rewire . | . . . Trap . | . . . Miscellaneous . | . . . Route ------- -11/Scrapyard -10/Materials (discovered 6 exits: [*Mat x3] / [*Min x2] / *Sub) -10/Subcaves (discovered 3 exits: [*Mat] / Rec / [*Scr]) History --------- Turn | Location | Event 10 | -11/Scrapyard | Discovered new exit (range 3) 48 | -11/Scrapyard | Entered Materials 307 | -10/Materials | Build established: Mutant 362 | -10/Materials | Discovered new exit (range 8) 595 | -10/Materials | Discovered new exit (range 10) 873 | -10/Materials | Discovered new exit (range 15) 1177 | -10/Materials | Discovered new exit (range 10) 1626 | -10/Materials | Repaired Lgt. Treads 2258 | -10/Materials | Discovered new exit (range 14) 2479 | -10/Materials | Discovered new exit (range 6) 2505 | -10/Materials | Entered Subcaves 2506 | -10/Subcaves | Approached by a straggling Scientist 2512 | -10/Subcaves | Scientist uncovered a shortcut to Scraptown 2638 | -10/Subcaves | Visited Clippyterm 2645 | -10/Subcaves | Learned Factory stockpile data 2645 | -10/Subcaves | Learned Factory fabricator intel 3133 | -10/Subcaves | Learned location of Zion (-7) 3133 | -10/Subcaves | Met a Zionite searching for "candidates" 3157 | -10/Subcaves | A swath of the cavern ceiling suddenly collapsed 3273 | -10/Subcaves | Core integrity fell below 50% 3563 | -10/Subcaves | Visited triangular shrine 3578 | -10/Subcaves | Found Prototype Device 3578 | -10/Subcaves | Identified V3-11A's Pendant 3583 | -10/Subcaves | Befriended Subdweller 3602 | -10/Subcaves | A swath of the cavern ceiling suddenly collapsed 3898 | -10/Subcaves | Shifting Twisted Machinery released Barrage Gun 3902 | -10/Subcaves | Shifting Twisted Machinery released Barrage Gun 3902 | -10/Subcaves | Discovered new exit (range 6) 4228 | -10/Subcaves | Befriended Subdweller 4283 | -10/Subcaves | Befriended Subdweller 4547 | -10/Subcaves | Ambushed by angry Subdweller bent on revenge 4548 | -10/Subcaves | Befriended Subdweller 4563 | -10/Subcaves | Befriended Subdweller 4688 | -10/Subcaves | Befriended Subdweller 4688 | -10/Subcaves | Befriended Subdweller 4705 | -10/Subcaves | Identified exit to Recycling 5883 | -10/Subcaves | Befriended Subdweller 5908 | -10/Subcaves | Befriended Subdweller 8103 | -10/Subcaves | Befriended Subdweller 8796 | -10/Subcaves | Crushed by falling debris 8796 | -10/Subcaves | Smashed by cave-in Last Messages --------------- 08102_ L4-V1U(R): "SUBHATE!" 08103_ L4-V1U(R): "SUBSUB?" 08110_ Subatomizers dissect the Wheel. 08192_ System corrupted: Component data lost. 08252_ System corrupted: Substantial component data lost. 08313_ System corrupted: Component data lost. 08343_ Subatomizers dissect the Multitool, destroying it. 08781_ Searching scrap... 08781_ Found Sub. Optics. 08781_ Found 46 Matter. 08787_ Sub. Laser shoots sparks and powers down. 08795_ ALDDMFTY0BUA KFA9RG#3UAVDC 08796_ The unstable cave ceiling collapses. 08796_ Crushed by falling debris. 08796_ Lgt. Treads destroyed. 08796_ System corrupted by crushing effect (+4). 08796_ V3-11A's Pendant destroyed. 08796_ System corrupted by crushing effect (+1). 08796_ Broken Sub. Laser destroyed. 08796_ System corrupted by crushing effect (+2). Map ----- +----------------------------------------------------+ | ?????????## =%&% ##"##?????????????? | | ?????????# ^ " [### """#?????????????? | | ????????# " "" #" "###" #?????????????? | | ???????? """## ## "## #?????????????? | | ????????????"??#??#" """ " #?????????????? | | ??????????????????## """ """##?????????????? | | ????????????""????## " ####??????????????? | | ???????????? #???# "##?????????????????? | | ????????????? #??# "#??????????????????? | | ?????????????""#??## "####???????????????? | | ????????????? "##?## "" ##??????????????? | | ????????????## "?## "" #??????????????? | | ????????????# ""?# ### "" ##??????????????? | | ?# ??????### #### #?######???????????????? | | ?# ##### "## ##?????????????????????? | | ??# "" #?????????????????????? | | ???# ^ ^ ##?????????????????????? | | ?????# ### ##?????????????????????? | | ?????# #### # #?????????????????????? | | ????# ###???# ##?????????????????????? | | ?? ????????# # # ##?????????????????????? | | ??????????## ### #?????????????????????? | | ????????????# #### ##????###??????????????? | | ???????####### ## ######R#??????????????? | | ???????# # ## ### # ## % #??????????????? | | ???????## | ### @# #??????????????? | | ???????# # # ##?## ### #??????????????? | | ???????# #####???######## #??????????????? | | ?????### #?????????????# #??????????????? | | ????## #??????????#### #??????????????? | | ????# ##?????????## # #??????????????? | | ????## ##???###### #??????????????? | | ?????### ##??# ### #??????????????? | | ???????## ##?# ### ##??????????????? | | ????????# #### ##?# #???????????????? | | ????????## ## #??## ##??????????????? | | ?????????# ## #??## #??????????????? | | ?????????# ## #?## #??????????????? | | ?????????## ## #?# ##?????????????? | | ??????????## ## #?## #?????????????? | | #??????????# ##?# #?????????????? | | ##????????# ### #?????????????? | | ####?????# #?????????????? | | ##????## #?????????????? | | ##????### ### #?????????????? | | # ######?## ##?## ##?????????????? | | ## ## ##?###???## #??????????????? | | ?# ##???????# #??????????????? | | ?#### ##??????## #??????????????? | | ????# ##?????# ###??????????????? | +----------------------------------------------------+ Best States ------------- Heat Dissipation 39 Energy Generation 10 Energy Capacity 250 Matter Stores 300 Matter Capacity 300 Sight Range 16 Terrain Scan Density 10 Armor Coverage 150 Evasion (%) 55 Recoil Reduction 2 Item Schematics ----------------- Huge Storage Unit | -10/Materials | Hacked Robot Schematics ------------------ None Fabricated ------------ Nothing Repaired ---------- Lgt. Treads | 67% | -10/Materials Studied --------- None Alien Tech Used ----------------- None Achievements -------------- None Challenges ------------ None Game ------ Seed WaveEtherialPendant Manual? 0 Play Time 00:25:56 Cumulative 431.5 hours Start 2026.04.24 @ 11:46:12 End 2026.04.24 @ 12:43:22 Sessions 1 Manual Loads 0 Difficulty Rogue Special Mode None Game No. 159 Rogue 158 Adventurer 1 Explorer 0 Win Type - Total 18 Types 6/2/2/1/1/0/4/1/0/1 Lore% 64 Gallery% 82 Achievement% 74 Wizard Run 0 Options --------- Layout 0 ASCII 0 Keyboard 0 Movement Arrows Keybinds 0 Fullscreen 2 Font 24/Smallcaps Map View 76x50 Zoom Use 0% Tactical HUD 1 Map Filters NONE Filters NONE Steam 1 RUN: c92afa92-ba7f-407d-aaea-17ff93203e95